[Event "Challengers Triathlon (GM2)"]
[Site "Biel, CH"]
[Date "2025.07.20"]
[Round "15"]
[White "Jumabayev, Rinat"]
[Black "Navara, David"]
[Result "1-0"]
[Board "1"]
[TimeControl "180+2"]
[WhiteFideId "13702661"]
[BlackFideId "309095"]
[WhiteTitle "GM"]
[BlackTitle "GM"]
[WhiteElo "2520"]
[BlackElo "2646"]
[WhiteTeam "KAZ"]
[BlackTeam "CZE"]
[WhiteClock "0:00:06"]
[BlackClock "0:00:04"]
[Variant "Standard"]

1. Nf3 {[%clk 0:03:02]}  d5 {[%clk 0:03:01]} 2. g3 {[%clk 0:03:05]}  c6 {[%clk 0:02:58]} 3. Bg2 {[%clk 0:03:05]}  Bg4 {[%clk 0:02:59]} 4. c4 {[%clk 0:03:01]}  e6 {[%clk 0:02:52]} 5. cxd5 {[%clk 0:02:39]}  Bxf3 {[%clk 0:02:52]} 6. Bxf3 {[%clk 0:02:40]}  cxd5 {[%clk 0:02:52]} 7. d4 {[%clk 0:02:12]}  Nc6 {[%clk 0:02:53]} 8. Nc3 {[%clk 0:02:13]}  Nf6 {[%clk 0:02:53]} 9. O-O {[%clk 0:02:13]}  Be7 {[%clk 0:02:54]} 10. e3 {[%clk 0:02:14]}  O-O {[%clk 0:02:54]} 11. Qe2 {[%clk 0:02:12]}  Rc8 {[%clk 0:02:35]} 12. Bd2 {[%clk 0:02:12]}  a6 {[%clk 0:02:35]} 13. Rfc1 {[%clk 0:02:09]}  b5 {[%clk 0:02:35]} 14. Qd1 {[%clk 0:01:50]}  Qb6 {[%clk 0:02:24]} 15. a4 {[%clk 0:01:35]}  b4 {[%clk 0:02:15]} 16. Ne2 {[%clk 0:01:36]}  e5 {[%clk 0:02:03]} 17. a5 {[%clk 0:01:12]}  Qb7 {[%clk 0:01:56]} 18. Be1 {[%clk 0:01:10]}  e4 {[%clk 0:01:48]} 19. Bg2 {[%clk 0:01:11]}  Rc7 {[%clk 0:01:38]} 20. Rc2 {[%clk 0:01:01]}  Bd6 {[%clk 0:01:22]} 21. Nc1 {[%clk 0:01:01]}  Nd8 {[%clk 0:01:03]} 22. Rxc7 {[%clk 0:00:57]}  Qxc7 {[%clk 0:01:00]} 23. Qe2 {[%clk 0:00:44]}  Qb7 {[%clk 0:00:56]} 24. Bf1 {[%clk 0:00:45]}  Nc6 {[%clk 0:00:50]} 25. Qxa6 {[%clk 0:00:31]}  Qxa6 {[%clk 0:00:51]} 26. Bxa6 {[%clk 0:00:32]}  Ra8 {[%clk 0:00:52]} 27. Bb5 {[%clk 0:00:32]}  Rxa5 {[%clk 0:00:47]} 28. Rxa5 {[%clk 0:00:33]}  Nxa5 {[%clk 0:00:48]} 29. Na2 {[%clk 0:00:34]}  b3 {[%clk 0:00:31]} 30. Nc1 {[%clk 0:00:35]}  Nc4 {[%clk 0:00:32]} 31. Bc3 {[%clk 0:00:36]}  Kf8 {[%clk 0:00:26]} 32. Nxb3 {[%clk 0:00:36]}  Nb6 {[%clk 0:00:27]} 33. Ba5 {[%clk 0:00:32]}  Na8 {[%clk 0:00:24]} 34. Bc6 {[%clk 0:00:29]}  Nc7 {[%clk 0:00:24]} 35. Nc5 {[%clk 0:00:30]}  Ke7 {[%clk 0:00:23]} 36. b4 {[%clk 0:00:21]}  Ne6 {[%clk 0:00:23]} 37. Nxe6 {[%clk 0:00:08]}  fxe6 {[%clk 0:00:24]} 38. b5 {[%clk 0:00:09]}  Nd7 {[%clk 0:00:10]} 39. b6 {[%clk 0:00:08]}  Nb8 {[%clk 0:00:11]} 40. Bb5 {[%clk 0:00:10]}  Ba3 {[%clk 0:00:11]} 41. Kg2 {[%clk 0:00:11]}  Kd6 {[%clk 0:00:12]} 42. f3 {[%clk 0:00:08]}  Nc6 {[%clk 0:00:09]} 43. Bd2 {[%clk 0:00:05]}  exf3+ {[%clk 0:00:06]} 44. Kxf3 {[%clk 0:00:06]}  Nd8 {[%clk 0:00:06]} 45. e4 {[%clk 0:00:05]}  dxe4+ {[%clk 0:00:03]} 46. Kxe4 {[%clk 0:00:06]}  Ke7 {[%clk 0:00:04]} 47. Bg5+ {[%clk 0:00:06]} 1-0

[Event "Challengers Triathlon (GM2)"]
[Site "Biel, CH"]
[Date "2025.07.20"]
[Round "15"]
[White "Theodorou, Nikolas"]
[Black "Hakobyan, Aram"]
[Result "0-1"]
[Board "2"]
[TimeControl "180+2"]
[WhiteFideId "4262875"]
[BlackFideId "13306677"]
[WhiteTitle "GM"]
[BlackTitle "GM"]
[WhiteElo "2549"]
[BlackElo "2557"]
[WhiteTeam "GRE"]
[BlackTeam "ARM"]
[WhiteClock "0:00:05"]
[BlackClock "0:00:06"]
[Variant "Standard"]

1. d4 {[%clk 0:03:03]}  d5 {[%clk 0:03:03]} 2. c4 {[%clk 0:03:04]}  dxc4 {[%clk 0:03:04]} 3. Nf3 {[%clk 0:03:04]}  Nf6 {[%clk 0:03:05]} 4. e3 {[%clk 0:03:05]}  Be6 {[%clk 0:03:06]} 5. Na3 {[%clk 0:02:58]}  Bd5 {[%clk 0:03:06]} 6. Nxc4 {[%clk 0:02:57]}  e6 {[%clk 0:03:06]} 7. Be2 {[%clk 0:02:57]}  c5 {[%clk 0:03:06]} 8. O-O {[%clk 0:02:48]}  Nc6 {[%clk 0:03:06]} 9. dxc5 {[%clk 0:02:48]}  Bxc5 {[%clk 0:03:05]} 10. b3 {[%clk 0:02:49]}  O-O {[%clk 0:03:01]} 11. Bb2 {[%clk 0:02:49]}  Qe7 {[%clk 0:02:56]} 12. a3 {[%clk 0:02:43]}  Rfd8 {[%clk 0:02:55]} 13. Qb1 {[%clk 0:02:43]}  a6 {[%clk 0:02:19]} 14. Ncd2 {[%clk 0:02:20]}  e5 {[%clk 0:02:14]} 15. Bc4 {[%clk 0:02:19]}  h6 {[%clk 0:02:02]} 16. Bxd5 {[%clk 0:02:14]}  Rxd5 {[%clk 0:01:55]} 17. Ne4 {[%clk 0:02:14]}  Nxe4 {[%clk 0:01:51]} 18. Qxe4 {[%clk 0:02:14]}  Qe6 {[%clk 0:01:52]} 19. b4 {[%clk 0:02:08]}  Be7 {[%clk 0:01:47]} 20. Rfd1 {[%clk 0:01:41]}  Rad8 {[%clk 0:01:47]} 21. Rxd5 {[%clk 0:01:42]}  Qxd5 {[%clk 0:01:46]} 22. Qxd5 {[%clk 0:01:28]}  Rxd5 {[%clk 0:01:47]} 23. e4 {[%clk 0:01:29]}  Rb5 {[%clk 0:01:19]} 24. Bc3 {[%clk 0:01:21]}  f6 {[%clk 0:01:19]} 25. Kf1 {[%clk 0:00:55]}  Rb6 {[%clk 0:01:16]} 26. Ke2 {[%clk 0:00:49]}  Na7 {[%clk 0:01:15]} 27. Nd2 {[%clk 0:00:34]}  Rc6 {[%clk 0:01:13]} 28. Kd3 {[%clk 0:00:34]}  Nb5 {[%clk 0:01:11]} 29. Bb2 {[%clk 0:00:35]}  Rd6+ {[%clk 0:01:10]} 30. Ke2 {[%clk 0:00:35]}  Rc6 {[%clk 0:01:11]} 31. Kd3 {[%clk 0:00:36]}  Kf7 {[%clk 0:01:06]} 32. Nc4 {[%clk 0:00:32]}  Nd6 {[%clk 0:00:58]} 33. Na5 {[%clk 0:00:30]}  Rc7 {[%clk 0:00:58]} 34. Rc1 {[%clk 0:00:29]}  Rd7 {[%clk 0:00:59]} 35. Ke3 {[%clk 0:00:29]}  Ke6 {[%clk 0:00:56]} 36. f3 {[%clk 0:00:29]}  f5 {[%clk 0:00:57]} 37. exf5+ {[%clk 0:00:29]}  Nxf5+ {[%clk 0:00:58]} 38. Ke2 {[%clk 0:00:30]}  Bg5 {[%clk 0:00:48]} 39. Rc2 {[%clk 0:00:29]}  Ne3 {[%clk 0:00:45]} 40. Rc5 {[%clk 0:00:31]}  Nxg2 {[%clk 0:00:45]} 41. Rxe5+ {[%clk 0:00:30]}  Kf7 {[%clk 0:00:47]} 42. Bc3 {[%clk 0:00:07]}  Nf4+ {[%clk 0:00:45]} 43. Kf1 {[%clk 0:00:06]}  Bf6 {[%clk 0:00:41]} 44. Re4 {[%clk 0:00:06]}  Rd1+ {[%clk 0:00:26]} 45. Re1 {[%clk 0:00:06]}  Rd3 {[%clk 0:00:22]} 46. Bxf6 {[%clk 0:00:07]}  Rxf3+ {[%clk 0:00:23]} 47. Kg1 {[%clk 0:00:08]}  Kxf6 {[%clk 0:00:22]} 48. a4 {[%clk 0:00:08]}  b5 {[%clk 0:00:18]} 49. axb5 {[%clk 0:00:08]}  axb5 {[%clk 0:00:20]} 50. Nc6 {[%clk 0:00:09]}  Rb3 {[%clk 0:00:15]} 51. Re4 {[%clk 0:00:07]}  g5 {[%clk 0:00:14]} 52. Na7 {[%clk 0:00:07]}  Kf5 {[%clk 0:00:13]} 53. Re8 {[%clk 0:00:04]}  Rb1+ {[%clk 0:00:13]} 54. Kf2 {[%clk 0:00:04]}  Rb2+ {[%clk 0:00:13]} 55. Kg1 {[%clk 0:00:04]}  Rxb4 {[%clk 0:00:14]} 56. Rb8 {[%clk 0:00:05]}  Rb1+ {[%clk 0:00:15]} 57. Kf2 {[%clk 0:00:06]}  Rb2+ {[%clk 0:00:16]} 58. Ke3 {[%clk 0:00:06]}  b4 {[%clk 0:00:13]} 59. Nc6 {[%clk 0:00:07]}  b3 {[%clk 0:00:13]} 60. Nd4+ {[%clk 0:00:06]}  Kg4 {[%clk 0:00:14]} 61. Rxb3 {[%clk 0:00:05]}  Rxh2 {[%clk 0:00:11]} 62. Rb8 {[%clk 0:00:04]}  h5 {[%clk 0:00:10]} 63. Rg8 {[%clk 0:00:05]}  Rh3+ {[%clk 0:00:10]} 64. Ke4 {[%clk 0:00:06]}  Rh1 {[%clk 0:00:07]} 65. Nf3 {[%clk 0:00:07]}  Nh3 {[%clk 0:00:07]} 66. Ne5 {[%clk 0:00:05]}  Kg3 {[%clk 0:00:08]} 67. Kf5 {[%clk 0:00:06]}  Rf1+ {[%clk 0:00:06]} 68. Kg6 {[%clk 0:00:07]}  h4 {[%clk 0:00:06]} 69. Kh5 {[%clk 0:00:09]}  Rf5 {[%clk 0:00:06]} 70. Nc4 {[%clk 0:00:04]}  Nf4+ {[%clk 0:00:06]} 71. Kh6 {[%clk 0:00:05]}  h3 {[%clk 0:00:07]} 72. Ne3 {[%clk 0:00:06]}  Ra5 {[%clk 0:00:07]} 73. Rxg5+ {[%clk 0:00:06]}  Rxg5 {[%clk 0:00:08]} 74. Kxg5 {[%clk 0:00:07]}  Kf3 {[%clk 0:00:05]} 75. Ng4 {[%clk 0:00:04]}  Kg3 {[%clk 0:00:04]} 76. Ne3 {[%clk 0:00:04]}  Nd5 {[%clk 0:00:05]} 77. Nf5+ {[%clk 0:00:03]}  Kg2 {[%clk 0:00:05]} 78. Kh4 {[%clk 0:00:04]}  h2 {[%clk 0:00:06]} 79. Ng3 {[%clk 0:00:05]}  Ne3 {[%clk 0:00:06]} 0-1

[Event "Challengers Triathlon (GM2)"]
[Site "Biel, CH"]
[Date "2025.07.20"]
[Round "15"]
[White "Ma, Qun"]
[Black "Dardha, Daniel"]
[Result "0-1"]
[Board "3"]
[TimeControl "180+2"]
[WhiteFideId "8603154"]
[BlackFideId "240990"]
[WhiteTitle "GM"]
[BlackTitle "GM"]
[WhiteElo "2614"]
[BlackElo "2592"]
[WhiteTeam "CHN"]
[BlackTeam "BEL"]
[WhiteClock "0:00:14"]
[BlackClock "0:00:11"]
[Variant "Standard"]

1. e4 {[%clk 0:03:02]}  e5 {[%clk 0:03:03]} 2. Nf3 {[%clk 0:03:03]}  Nc6 {[%clk 0:03:04]} 3. Bc4 {[%clk 0:03:01]}  d6 {[%clk 0:03:04]} 4. d4 {[%clk 0:03:01]}  Nf6 {[%clk 0:03:04]} 5. Nc3 {[%clk 0:02:55]}  Bg4 {[%clk 0:03:04]} 6. Bb5 {[%clk 0:02:34]}  Nd7 {[%clk 0:02:19]} 7. dxe5 {[%clk 0:01:59]}  dxe5 {[%clk 0:02:18]} 8. Bxc6 {[%clk 0:01:49]}  bxc6 {[%clk 0:02:19]} 9. h3 {[%clk 0:01:51]}  Bh5 {[%clk 0:02:15]} 10. Qd3 {[%clk 0:01:44]}  Bd6 {[%clk 0:02:13]} 11. O-O {[%clk 0:01:37]}  Nc5 {[%clk 0:02:03]} 12. Qe3 {[%clk 0:01:33]}  Ne6 {[%clk 0:01:52]} 13. Ne2 {[%clk 0:01:34]}  O-O {[%clk 0:01:46]} 14. Ng3 {[%clk 0:01:35]}  Bg6 {[%clk 0:01:38]} 15. b3 {[%clk 0:01:29]}  f6 {[%clk 0:01:32]} 16. Bb2 {[%clk 0:01:30]}  a5 {[%clk 0:01:23]} 17. a4 {[%clk 0:01:28]}  Bb4 {[%clk 0:01:09]} 18. Bc3 {[%clk 0:01:23]}  Bc5 {[%clk 0:01:05]} 19. Qe1 {[%clk 0:01:24]}  Bb6 {[%clk 0:01:00]} 20. Rd1 {[%clk 0:01:23]}  Qe8 {[%clk 0:00:50]} 21. Nd2 {[%clk 0:01:10]}  c5 {[%clk 0:00:45]} 22. Nc4 {[%clk 0:01:07]}  Nd4 {[%clk 0:00:46]} 23. Rd2 {[%clk 0:00:55]}  Bf7 {[%clk 0:00:44]} 24. Ne3 {[%clk 0:00:50]}  Be6 {[%clk 0:00:44]} 25. Kh2 {[%clk 0:00:37]}  Kh8 {[%clk 0:00:45]} 26. Qc1 {[%clk 0:00:26]}  c4 {[%clk 0:00:44]} 27. bxc4 {[%clk 0:00:16]}  Qxa4 {[%clk 0:00:43]} 28. Qa1 {[%clk 0:00:17]}  Qc6 {[%clk 0:00:42]} 29. Qa2 {[%clk 0:00:17]}  a4 {[%clk 0:00:29]} 30. Bb4 {[%clk 0:00:16]}  Bc5 {[%clk 0:00:25]} 31. Bxc5 {[%clk 0:00:08]}  Qxc5 {[%clk 0:00:26]} 32. Rb1 {[%clk 0:00:08]}  c6 {[%clk 0:00:18]} 33. Rd3 {[%clk 0:00:10]}  Ra7 {[%clk 0:00:13]} 34. Ra3 {[%clk 0:00:09]}  Nb5 {[%clk 0:00:07]} 35. Rd3 {[%clk 0:00:06]}  Nd6 {[%clk 0:00:08]} 36. Rc3 {[%clk 0:00:03]}  a3 {[%clk 0:00:07]} 37. Rd1 {[%clk 0:00:04]}  h6 {[%clk 0:00:05]} 38. Rdd3 {[%clk 0:00:04]}  Rfa8 {[%clk 0:00:06]} 39. f3 {[%clk 0:00:04]}  Bg8 {[%clk 0:00:04]} 40. h4 {[%clk 0:00:05]}  Nb5 {[%clk 0:00:05]} 41. Rb3 {[%clk 0:00:05]}  Nd4 {[%clk 0:00:06]} 42. Rb1 {[%clk 0:00:06]}  Ra4 {[%clk 0:00:05]} 43. c3 {[%clk 0:00:08]}  Nb5 {[%clk 0:00:05]} 44. Rd7 {[%clk 0:00:06]}  Bxc4 {[%clk 0:00:04]} 45. Nxc4 {[%clk 0:00:07]}  Qxc4 {[%clk 0:00:05]} 46. Qd2 {[%clk 0:00:07]}  a2 {[%clk 0:00:06]} 47. Ra1 {[%clk 0:00:08]}  Qxc3 {[%clk 0:00:06]} 48. Qd1 {[%clk 0:00:07]}  Rd4 {[%clk 0:00:05]} 49. Rxd4 {[%clk 0:00:05]}  Qxd4 {[%clk 0:00:06]} 50. Qc1 {[%clk 0:00:07]}  Qxa1 {[%clk 0:00:05]} 51. Qxa1 {[%clk 0:00:08]}  Nd4 {[%clk 0:00:06]} 52. Nf5 {[%clk 0:00:07]}  Nb3 {[%clk 0:00:04]} 53. Qd1 {[%clk 0:00:07]}  a1=Q {[%clk 0:00:05]} 54. Qxb3 {[%clk 0:00:07]}  Qa7 {[%clk 0:00:04]} 55. Qe6 {[%clk 0:00:08]}  Rf8 {[%clk 0:00:04]} 56. Qxc6 {[%clk 0:00:07]}  Qf7 {[%clk 0:00:05]} 57. Qd6 {[%clk 0:00:08]}  h5 {[%clk 0:00:06]} 58. Ne7 {[%clk 0:00:07]}  Re8 {[%clk 0:00:05]} 59. Nf5 {[%clk 0:00:09]}  g6 {[%clk 0:00:06]} 60. Ne3 {[%clk 0:00:10]}  Qe6 {[%clk 0:00:06]} 61. Qc7 {[%clk 0:00:11]}  Re7 {[%clk 0:00:06]} 62. Qd8+ {[%clk 0:00:12]}  Kg7 {[%clk 0:00:07]} 63. Nd5 {[%clk 0:00:13]}  Rd7 {[%clk 0:00:07]} 64. Qc8 {[%clk 0:00:14]}  Qd6 {[%clk 0:00:06]} 65. Qe8 {[%clk 0:00:15]}  Rd8 {[%clk 0:00:06]} 66. Qb5 {[%clk 0:00:16]}  Rb8 {[%clk 0:00:07]} 67. Qa5 {[%clk 0:00:17]}  Rb7 {[%clk 0:00:05]} 68. Qa8 {[%clk 0:00:18]}  Rf7 {[%clk 0:00:06]} 69. Qc8 {[%clk 0:00:19]}  Qd7 {[%clk 0:00:07]} 70. Qb8 {[%clk 0:00:20]}  Rf8 {[%clk 0:00:07]} 71. Qb6 {[%clk 0:00:21]}  Qd8 {[%clk 0:00:08]} 72. Qb7+ {[%clk 0:00:22]}  Rf7 {[%clk 0:00:09]} 73. Qc6 {[%clk 0:00:24]}  f5 {[%clk 0:00:10]} 74. Qe6 {[%clk 0:00:24]}  Qxh4+ {[%clk 0:00:11]} 75. Kg1 {[%clk 0:00:25]}  Qe1+ {[%clk 0:00:10]} 76. Kh2 {[%clk 0:00:27]}  Qh4+ {[%clk 0:00:07]} 77. Kg1 {[%clk 0:00:28]}  fxe4 {[%clk 0:00:05]} 78. Qxe5+ {[%clk 0:00:27]}  Kh7 {[%clk 0:00:07]} 79. f4 {[%clk 0:00:22]}  Qe1+ {[%clk 0:00:06]} 80. Kh2 {[%clk 0:00:23]}  Qh4+ {[%clk 0:00:04]} 81. Kg1 {[%clk 0:00:25]}  e3 {[%clk 0:00:03]} 82. Qxe3 {[%clk 0:00:24]}  Qd8 {[%clk 0:00:03]} 83. Qe6 {[%clk 0:00:23]}  Ra7 {[%clk 0:00:04]} 84. Nf6+ {[%clk 0:00:21]}  Kg7 {[%clk 0:00:05]} 85. Ne8+ {[%clk 0:00:14]}  Kh6 {[%clk 0:00:06]} 86. Nf6 {[%clk 0:00:14]}  Qd4+ {[%clk 0:00:04]} 87. Kh2 {[%clk 0:00:08]}  Qxf4+ {[%clk 0:00:05]} 88. g3 {[%clk 0:00:04]}  Qf2+ {[%clk 0:00:05]} 89. Kh3 {[%clk 0:00:09]}  Qf5+ {[%clk 0:00:05]} 90. Qxf5 {[%clk 0:00:10]}  gxf5 {[%clk 0:00:06]} 91. Nd5 {[%clk 0:00:10]}  Ra4 {[%clk 0:00:07]} 92. Nc3 {[%clk 0:00:09]}  Rc4 {[%clk 0:00:07]} 93. Nd5 {[%clk 0:00:10]}  Kg5 {[%clk 0:00:08]} 94. Ne3 {[%clk 0:00:11]}  Ra4 {[%clk 0:00:09]} 95. Nd5 {[%clk 0:00:12]}  h4 {[%clk 0:00:09]} 96. gxh4+ {[%clk 0:00:12]}  Rxh4+ {[%clk 0:00:10]} 97. Kg3 {[%clk 0:00:14]}  Rd4 {[%clk 0:00:11]} 0-1

[Event "Challengers Triathlon (GM2)"]
[Site "Biel, CH"]
[Date "2025.07.20"]
[Round "16"]
[White "Navara, David"]
[Black "Dardha, Daniel"]
[Result "1-0"]
[Board "1"]
[TimeControl "180+2"]
[WhiteFideId "309095"]
[BlackFideId "240990"]
[WhiteTitle "GM"]
[BlackTitle "GM"]
[WhiteElo "2646"]
[BlackElo "2592"]
[WhiteTeam "CZE"]
[BlackTeam "BEL"]
[WhiteClock "0:00:08"]
[BlackClock "0:00:09"]
[Variant "Standard"]

1. e4 {[%clk 0:03:03]}  e5 {[%clk 0:03:02]} 2. Nf3 {[%clk 0:03:04]}  Nc6 {[%clk 0:03:03]} 3. Bb5 {[%clk 0:03:05]}  a6 {[%clk 0:03:03]} 4. Ba4 {[%clk 0:03:06]}  Nge7 {[%clk 0:02:59]} 5. O-O {[%clk 0:02:54]}  Ng6 {[%clk 0:03:00]} 6. c3 {[%clk 0:02:52]}  d5 {[%clk 0:02:46]} 7. exd5 {[%clk 0:02:38]}  Qxd5 {[%clk 0:02:46]} 8. Bb3 {[%clk 0:02:39]}  Qd3 {[%clk 0:02:46]} 9. Bc2 {[%clk 0:02:38]}  Qd6 {[%clk 0:02:47]} 10. Re1 {[%clk 0:02:28]}  Be7 {[%clk 0:02:38]} 11. d4 {[%clk 0:02:12]}  exd4 {[%clk 0:02:30]} 12. Nxd4 {[%clk 0:02:09]}  Nxd4 {[%clk 0:02:28]} 13. Qxd4 {[%clk 0:02:07]}  O-O {[%clk 0:01:50]} 14. Qxd6 {[%clk 0:02:08]}  Bxd6 {[%clk 0:01:51]} 15. Nd2 {[%clk 0:02:08]}  Be6 {[%clk 0:01:42]} 16. Ne4 {[%clk 0:02:09]}  Be7 {[%clk 0:01:35]} 17. Ng5 {[%clk 0:02:08]}  Bxg5 {[%clk 0:01:24]} 18. Bxg5 {[%clk 0:02:08]}  Rfe8 {[%clk 0:01:25]} 19. b3 {[%clk 0:01:57]}  f6 {[%clk 0:01:15]} 20. Be3 {[%clk 0:01:52]}  Kf7 {[%clk 0:01:15]} 21. f3 {[%clk 0:01:51]}  h5 {[%clk 0:01:11]} 22. Be4 {[%clk 0:01:49]}  c6 {[%clk 0:01:05]} 23. c4 {[%clk 0:01:40]}  Rad8 {[%clk 0:00:54]} 24. Kf2 {[%clk 0:01:40]}  Ne7 {[%clk 0:00:55]} 25. Rad1 {[%clk 0:01:32]}  Bf5 {[%clk 0:00:53]} 26. Bxf5 {[%clk 0:00:58]}  Nxf5 {[%clk 0:00:52]} 27. Bb6 {[%clk 0:00:58]}  Rxe1 {[%clk 0:00:33]} 28. Rxd8 {[%clk 0:00:59]}  Ra1 {[%clk 0:00:33]} 29. Rd2 {[%clk 0:00:59]}  Ke6 {[%clk 0:00:28]} 30. g4 {[%clk 0:00:46]}  hxg4 {[%clk 0:00:29]} 31. fxg4 {[%clk 0:00:47]}  Nh6 {[%clk 0:00:23]} 32. h3 {[%clk 0:00:42]}  Nf7 {[%clk 0:00:24]} 33. Bd4 {[%clk 0:00:36]}  Rc1 {[%clk 0:00:22]} 34. Be3 {[%clk 0:00:25]}  Rb1 {[%clk 0:00:21]} 35. Bf4 {[%clk 0:00:17]}  b5 {[%clk 0:00:15]} 36. Ke3 {[%clk 0:00:13]}  Ne5 {[%clk 0:00:08]} 37. c5 {[%clk 0:00:10]}  Ke7 {[%clk 0:00:04]} 38. Bxe5 {[%clk 0:00:09]}  fxe5 {[%clk 0:00:04]} 39. Rd6 {[%clk 0:00:10]}  Rh1 {[%clk 0:00:05]} 40. Rxc6 {[%clk 0:00:10]}  Rxh3+ {[%clk 0:00:06]} 41. Ke4 {[%clk 0:00:11]}  a5 {[%clk 0:00:04]} 42. Kxe5 {[%clk 0:00:09]}  Re3+ {[%clk 0:00:05]} 43. Kf5 {[%clk 0:00:09]}  Re2 {[%clk 0:00:04]} 44. a3 {[%clk 0:00:06]}  Re3 {[%clk 0:00:05]} 45. Ra6 {[%clk 0:00:07]}  Rxb3 {[%clk 0:00:05]} 46. Rxa5 {[%clk 0:00:07]}  Kd7 {[%clk 0:00:04]} 47. Ra6 {[%clk 0:00:05]}  Ke7 {[%clk 0:00:03]} 48. Ra7+ {[%clk 0:00:06]}  Kf8 {[%clk 0:00:04]} 49. c6 {[%clk 0:00:06]}  Rc3 {[%clk 0:00:05]} 50. c7 {[%clk 0:00:07]}  Ke8 {[%clk 0:00:06]} 51. Ra8+ {[%clk 0:00:06]}  Kd7 {[%clk 0:00:07]} 52. c8=Q+ {[%clk 0:00:06]}  Rxc8 {[%clk 0:00:08]} 53. Rxc8 {[%clk 0:00:07]}  Kxc8 {[%clk 0:00:09]} 54. Kg6 {[%clk 0:00:08]} 1-0

[Event "Challengers Triathlon (GM2)"]
[Site "Biel, CH"]
[Date "2025.07.20"]
[Round "16"]
[White "Ma, Qun"]
[Black "Hakobyan, Aram"]
[Result "0-1"]
[Board "2"]
[TimeControl "180+2"]
[WhiteFideId "8603154"]
[BlackFideId "13306677"]
[WhiteTitle "GM"]
[BlackTitle "GM"]
[WhiteElo "2614"]
[BlackElo "2557"]
[WhiteTeam "CHN"]
[BlackTeam "ARM"]
[WhiteClock "0:00:03"]
[BlackClock "0:00:12"]
[Variant "Standard"]

1. d4 {[%clk 0:03:03]}  d5 {[%clk 0:03:02]} 2. c4 {[%clk 0:03:04]}  dxc4 {[%clk 0:03:03]} 3. e4 {[%clk 0:03:02]}  b5 {[%clk 0:03:04]} 4. a4 {[%clk 0:02:53]}  c6 {[%clk 0:03:04]} 5. axb5 {[%clk 0:02:54]}  cxb5 {[%clk 0:03:05]} 6. b3 {[%clk 0:02:52]}  e5 {[%clk 0:02:58]} 7. d5 {[%clk 0:02:44]}  Nf6 {[%clk 0:02:49]} 8. f3 {[%clk 0:02:37]}  Bc5 {[%clk 0:02:28]} 9. bxc4 {[%clk 0:02:20]}  Qb6 {[%clk 0:02:29]} 10. Ne2 {[%clk 0:02:21]}  Bf2+ {[%clk 0:02:03]} 11. Kd2 {[%clk 0:02:22]}  O-O {[%clk 0:01:57]} 12. Nbc3 {[%clk 0:02:11]}  bxc4 {[%clk 0:01:53]} 13. Ba3 {[%clk 0:01:47]}  Be3+ {[%clk 0:01:35]} 14. Ke1 {[%clk 0:01:47]}  Na6 {[%clk 0:01:18]} 15. Qb1 {[%clk 0:01:35]}  Nc5 {[%clk 0:01:05]} 16. Nc1 {[%clk 0:01:17]}  Bd4 {[%clk 0:01:06]} 17. Kd2 {[%clk 0:01:12]}  Ba6 {[%clk 0:00:37]} 18. Qxb6 {[%clk 0:00:25]}  axb6 {[%clk 0:00:38]} 19. Rb1 {[%clk 0:00:26]}  Rfb8 {[%clk 0:00:32]} 20. Be2 {[%clk 0:00:27]}  b5 {[%clk 0:00:22]} 21. Kc2 {[%clk 0:00:28]}  Nfd7 {[%clk 0:00:16]} 22. Rd1 {[%clk 0:00:27]}  Bc8 {[%clk 0:00:08]} 23. Bxc5 {[%clk 0:00:20]}  Bxc3 {[%clk 0:00:06]} 24. Bd6 {[%clk 0:00:13]}  Bd4 {[%clk 0:00:07]} 25. Bxb8 {[%clk 0:00:14]}  Rxb8 {[%clk 0:00:08]} 26. Na2 {[%clk 0:00:09]}  Rb6 {[%clk 0:00:06]} 27. Nb4 {[%clk 0:00:03]}  Bb7 {[%clk 0:00:08]} 28. Ra1 {[%clk 0:00:03]}  h5 {[%clk 0:00:08]} 29. Ra7 {[%clk 0:00:04]}  Nc5 {[%clk 0:00:07]} 30. Bf1 {[%clk 0:00:03]}  h4 {[%clk 0:00:08]} 31. g3 {[%clk 0:00:04]}  hxg3 {[%clk 0:00:09]} 32. hxg3 {[%clk 0:00:06]}  Rh6 {[%clk 0:00:10]} 33. Ra5 {[%clk 0:00:06]}  Rh2+ {[%clk 0:00:11]} 34. Kc1 {[%clk 0:00:03]}  Nb3+ {[%clk 0:00:12]} 0-1

[Event "Challengers Triathlon (GM2)"]
[Site "Biel, CH"]
[Date "2025.07.20"]
[Round "16"]
[White "Theodorou, Nikolas"]
[Black "Jumabayev, Rinat"]
[Result "1/2-1/2"]
[Board "3"]
[TimeControl "180+2"]
[WhiteFideId "4262875"]
[BlackFideId "13702661"]
[WhiteTitle "GM"]
[BlackTitle "GM"]
[WhiteElo "2549"]
[BlackElo "2520"]
[WhiteTeam "GRE"]
[BlackTeam "KAZ"]
[WhiteClock "0:00:08"]
[BlackClock "0:00:18"]
[Variant "Standard"]

1. d4 {[%clk 0:03:03]}  Nf6 {[%clk 0:03:03]} 2. c4 {[%clk 0:03:04]}  e6 {[%clk 0:03:05]} 3. Nf3 {[%clk 0:03:05]}  Bb4+ {[%clk 0:03:05]} 4. Nbd2 {[%clk 0:03:05]}  b6 {[%clk 0:02:59]} 5. a3 {[%clk 0:03:04]}  Bxd2+ {[%clk 0:02:59]} 6. Nxd2 {[%clk 0:02:58]}  Bb7 {[%clk 0:03:00]} 7. e3 {[%clk 0:02:59]}  d6 {[%clk 0:02:54]} 8. b3 {[%clk 0:03:00]}  O-O {[%clk 0:02:47]} 9. Bd3 {[%clk 0:03:00]}  Nbd7 {[%clk 0:02:46]} 10. Bb2 {[%clk 0:03:00]}  c5 {[%clk 0:02:44]} 11. dxc5 {[%clk 0:02:50]}  Nxc5 {[%clk 0:02:33]} 12. Bc2 {[%clk 0:02:48]}  Qe7 {[%clk 0:02:29]} 13. O-O {[%clk 0:02:31]}  Rac8 {[%clk 0:02:21]} 14. Qe2 {[%clk 0:02:30]}  d5 {[%clk 0:02:11]} 15. Rac1 {[%clk 0:02:20]}  dxc4 {[%clk 0:02:11]} 16. Nxc4 {[%clk 0:02:20]}  Be4 {[%clk 0:02:11]} 17. Rfd1 {[%clk 0:02:13]}  Rfd8 {[%clk 0:02:03]} 18. h3 {[%clk 0:01:46]}  h6 {[%clk 0:02:01]} 19. Bd4 {[%clk 0:01:40]}  Bxc2 {[%clk 0:01:52]} 20. Qxc2 {[%clk 0:01:40]}  Nce4 {[%clk 0:01:46]} 21. Qb2 {[%clk 0:01:41]}  Ne8 {[%clk 0:01:40]} 22. Ne5 {[%clk 0:01:35]}  Qb7 {[%clk 0:01:41]} 23. b4 {[%clk 0:01:19]}  f6 {[%clk 0:01:34]} 24. Rxc8 {[%clk 0:00:30]}  Rxc8 {[%clk 0:01:35]} 25. Nf3 {[%clk 0:00:26]}  e5 {[%clk 0:01:33]} 26. Qb3+ {[%clk 0:00:27]}  Qf7 {[%clk 0:01:33]} 27. Qb1 {[%clk 0:00:29]}  Nxf2 {[%clk 0:01:13]} 28. Kxf2 {[%clk 0:00:28]}  exd4 {[%clk 0:01:14]} 29. Rxd4 {[%clk 0:00:28]}  Qe6 {[%clk 0:00:55]} 30. Qd3 {[%clk 0:00:29]}  f5 {[%clk 0:00:43]} 31. Rd8 {[%clk 0:00:15]}  Rxd8 {[%clk 0:00:41]} 32. Qxd8 {[%clk 0:00:15]}  Kh7 {[%clk 0:00:37]} 33. Nd4 {[%clk 0:00:15]}  Qe5 {[%clk 0:00:38]} 34. Qd7 {[%clk 0:00:03]}  Nd6 {[%clk 0:00:39]} 35. Ne2 {[%clk 0:00:03]}  Ne4+ {[%clk 0:00:35]} 36. Kf3 {[%clk 0:00:04]}  Ng5+ {[%clk 0:00:35]} 37. Kf2 {[%clk 0:00:06]}  Ne4+ {[%clk 0:00:35]} 38. Kf3 {[%clk 0:00:07]}  Kh8 {[%clk 0:00:17]} 39. Qd8+ {[%clk 0:00:08]}  Kh7 {[%clk 0:00:18]} 1/2-1/2